bitfinex/quotes_SOLUSD_20230402
["timestamp","ask_amount","ask_price","bid_price","bid_amount"]
[1680421023883,26.38,21.25,21.239,10.0]
[1680421027686,10.0,21.248,21.235,10.0]
[1680421027882,16.473,21.246,21.235,10.0]
[1680421028083,20.0,21.245,21.235,10.0]
[1680421029295,20.0,21.245,21.234,10.0]
[1680421030581,17.0,21.244,21.234,10.0]
[1680421030887,20.0,21.243,21.231,10.0]
[1680421032590,20.0,21.243,21.233,119.1626]
[1680421034498,26.38,21.24,21.233,119.1626]
[1680421034800,17.0,21.239,21.233,119.1626]
[1680421037401,26.38,21.24,21.233,119.1626]
[1680421043610,16.478,21.241,21.234,10.0]
[1680421047302,16.478,21.241,21.233,119.1626]
[1680421047488,16.478,21.241,21.234,10.0]
[1680421049302,16.478,21.241,21.234,7.5]
[1680421050204,16.478,21.241,21.233,119.1626]
[1680421055106,20.0,21.243,21.233,119.1626]
[1680421055313,20.0,21.245,21.234,10.0]
[1680421057400,17.0,21.244,21.234,10.0]
[1680421057606,20.0,21.243,21.234,10.0]
[1680421058519,20.0,21.245,21.234,10.0]
[1680421058815,17.0,21.244,21.233,119.1626]
[1680421059012,20.0,21.243,21.233,119.1626]
[1680421068924,26.26,21.24,21.233,119.1626]
[1680421083645,26.26,21.24,21.23,113.8657]
[1680421083849,10.0,21.238,21.23,113.8657]
[1680421084038,37.0,21.237,21.222,10.0]
[1680421084348,26.18,21.23,21.222,10.0]
[1680421085653,26.18,21.23,21.221,113.8503]
[1680421085833,26.18,21.23,21.222,10.0]
[1680421093859,25.68,21.23,21.222,10.0]
[1680421099141,25.68,21.23,21.221,113.8503]
[1680421101863,25.68,21.23,21.222,10.0]
[1680421106970,25.68,21.23,21.221,113.8503]
[1680421107857,25.68,21.23,21.222,10.0]
[1680421121678,25.68,21.23,21.221,113.8503]
[1680421122370,27.11155295,21.237,21.222,10.0]
[1680421122580,21.15,21.23,21.222,10.0]
[1680421131073,21.15,21.23,21.221,113.8503]
[1680421132379,21.15,21.23,21.222,10.0]
[1680421142495,21.15,21.23,21.222,10.0]
[1680421147990,21.15,21.23,21.221,113.8503]
[1680421153281,17.0,21.229,21.22,500.0]
[1680421159509,16.488,21.227,21.22,500.0]
[1680421159803,54.11155295,21.226,21.22,500.0]
[1680421160206,7.11155295,21.225,21.22,500.0]
[1680421160408,37.0,21.224,21.22,500.0]
[1680421160919,44.11155295,21.224,21.22,500.0]
[1680421162112,10.0,21.222,21.22,500.0]
[1680421162301,17.0,21.221,21.22,500.0]
[1680421162510,24.11155295,21.221,21.22,500.0]
[1680421167119,44.11155295,21.221,21.22,500.0]
[1680421167419,155.66595602,21.221,21.22,500.0]
[1680421169933,155.66595602,21.221,21.22,489.0]
[1680421170127,155.66595602,21.221,21.22,329.0]
[1680421176344,138.66595602,21.221,21.22,329.0]
[1680421177645,155.66595602,21.221,21.22,329.0]
[1680421178043,84.74887905,21.221,21.22,329.0]
[1680421178342,16.488,21.228,21.22,329.0]
[1680421179431,20.0,21.227,21.22,329.0]
[1680421179632,17.0,21.226,21.22,329.0]
[1680421179846,20.0,21.225,21.22,329.0]
[1680421180036,27.11155295,21.225,21.22,329.0]
[1680421181249,17.0,21.224,21.22,329.0]
[1680421181458,20.0,21.223,21.22,329.0]
[1680421181631,17.0,21.222,21.22,329.0]
[1680421184236,20.0,21.223,21.22,329.0]
[1680421184438,7.11155295,21.225,21.22,329.0]
[1680421184439,20.0,21.224,21.22,329.0]
[1680421184639,17.0,21.223,21.22,329.0]
[1680421188955,20.0,21.224,21.22,329.0]
[1680421192663,7.11155295,21.228,21.22,329.0]
[1680421192957,20.0,21.227,21.222,10.0]
[1680421195359,20.0,21.227,21.221,115.0879]
[1680421197438,20.0,21.227,21.222,10.0]
[1680421197643,20.0,21.229,21.222,10.0]
[1680421198346,27.11155295,21.229,21.221,115.0879]
[1680421198546,84.74887905,21.229,21.221,115.0879]
[1680421198745,17.0,21.228,21.221,115.0879]
[1680421198945,20.0,21.227,21.221,115.0879]
[1680421199144,17.0,21.226,21.221,115.0879]
[1680421199357,20.0,21.225,21.221,115.0879]
[1680421200667,17.0,21.224,21.221,115.0879]
[1680421200965,20.0,21.223,21.221,115.0879]
[1680421201949,20.0,21.223,21.22,329.0]
[1680421203247,20.0,21.227,21.22,329.0]
[1680421203447,17.0,21.226,21.22,439.4458]
[1680421203647,20.0,21.225,21.22,439.4458]
[1680421204556,23.59855295,21.228,21.221,10.0]
[1680421204744,16.484,21.233,21.221,10.0]
[1680421204948,26.25,21.23,21.221,10.0]
[1680421205864,17.0,21.229,21.221,10.0]
[1680421206954,20.0,21.228,21.221,10.0]
[1680421207949,26.25,21.23,21.221,10.0]
[1680421208351,17.0,21.229,21.221,10.0]
[1680421209876,16.488,21.228,21.22,439.4458]
[1680421210052,36.488,21.228,21.22,439.4458]
[1680421210251,17.0,21.227,21.22,439.4458]
[1680421210465,20.0,21.226,21.22,439.4458]
[1680421210672,17.0,21.225,21.22,439.4458]
[1680421210979,20.0,21.224,21.22,439.4458]
[1680421211955,20.0,21.227,21.22,439.4458]
[1680421212156,17.0,21.226,21.22,439.4458]
[1680421212556,20.0,21.225,21.22,439.4458]
[1680421212974,20.0,21.227,21.22,439.4458]
[1680421213169,20.0,21.229,21.221,10.0]
[1680421213477,36.487,21.229,21.221,10.0]
[1680421213662,20.0,21.229,21.221,10.0]
[1680421218779,26.48,21.23,21.221,10.0]
[1680421228875,52.73,21.24,21.223,10.0]
[1680421229062,20.0,21.239,21.223,10.0]
[1680421230873,27.11155295,21.239,21.223,10.0]
[1680421231384,43.59055295,21.239,21.223,10.0]
[1680421231979,17.0,21.238,21.223,10.0]
[1680421232180,20.0,21.237,21.223,10.0]
[1680421232386,17.0,21.236,21.223,10.0]
[1680421232573,20.0,21.235,21.223,10.0]
[1680421232888,17.0,21.234,21.223,10.0]
[1680421233385,20.0,21.233,21.223,10.0]
[1680421236984,26.48,21.23,21.223,10.0]
[1680421243368,26.48,21.23,21.221,10.0]
[1680421262086,26.48,21.23,21.22,439.4458]
[1680421263896,26.48,21.23,21.221,10.0]
[1680421269408,17.0,21.229,21.22,329.0]
[1680421276431,16.488,21.227,21.22,329.0]
[1680421276618,17.0,21.226,21.22,329.0]
[1680421276819,20.0,21.225,21.22,329.0]
[1680421280936,26.48,21.23,21.221,10.0]
[1680421282833,17.0,21.229,21.22,329.0]
[1680421285135,17.0,21.229,21.221,10.0]
[1680421293153,17.0,21.229,21.22,329.0]
[1680421294938,36.487,21.228,21.22,329.0]
[1680421295245,17.0,21.227,21.22,329.0]
[1680421295435,20.0,21.226,21.22,329.0]
[1680421295635,17.0,21.225,21.22,329.0]
[1680421295935,20.0,21.224,21.22,329.0]
[1680421296135,17.0,21.223,21.22,329.0]
[1680421325477,20.0,21.224,21.22,329.0]
[1680421325662,20.0,21.229,21.22,329.0]
[1680421326180,27.11155295,21.229,21.22,329.0]
[1680421326878,17.0,21.228,21.22,329.0]
[1680421327059,20.0,21.227,21.22,329.0]
[1680421327273,17.0,21.226,21.22,329.0]
[1680421327474,20.0,21.225,21.22,329.0]
[1680421327659,17.0,21.224,21.22,329.0]
[1680421327860,20.0,21.223,21.22,329.0]
[1680421330683,17.0,21.222,21.22,329.0]
[1680421338788,24.11155295,21.222,21.22,329.0]
[1680421347085,24.11155295,21.222,21.22,318.0]
[1680421347291,30.0,21.221,21.22,318.0]
[1680421347488,85.21937168,21.221,21.22,318.0]
[1680421347799,92.33092463,21.221,21.22,318.0]
[1680421349306,109.33092463,21.221,21.22,318.0]
[1680421349488,99.33092463,21.221,21.22,318.0]
[1680421354305,82.33092463,21.221,21.22,318.0]
[1680421355706,99.33092463,21.221,21.22,318.0]
[1680421371621,27.11155295,21.221,21.22,318.0]
[1680421371801,44.11155295,21.221,21.22,318.0]
[1680421377127,71.70637168,21.228,21.221,10.0]
[1680421377305,16.487,21.228,21.221,10.0]
[1680421378000,23.59855295,21.228,21.221,10.0]
[1680421378521,20.0,21.227,21.221,10.0]
[1680421378821,7.11155295,21.226,21.221,10.0]
[1680421379020,20.0,21.225,21.22,318.0]
[1680421379222,17.0,21.224,21.22,318.0]
[1680421379406,20.0,21.223,21.22,318.0]
[1680421379604,17.0,21.222,21.22,318.0]
[1680421380723,20.0,21.223,21.22,318.0]
[1680421381026,20.0,21.224,21.22,318.0]
[1680421381225,17.0,21.223,21.22,318.0]
[1680421382222,20.0,21.224,21.221,10.0]
[1680421382429,26.36,21.23,21.221,10.0]
[1680421385110,17.0,21.229,21.221,10.0]
[1680421392428,20.0,21.228,21.221,10.0]
[1680421392636,17.0,21.227,21.22,318.0]
[1680421392835,20.0,21.226,21.22,318.0]
[1680421400237,17.0,21.225,21.22,318.0]
[1680421400426,20.0,21.224,21.22,318.0]
[1680421400617,17.0,21.223,21.22,318.0]
[1680421400822,24.11155295,21.223,21.22,318.0]
[1680421401135,7.11155295,21.222,21.22,318.0]
[1680421401323,53.493,21.221,21.22,282.8374]
[1680421401529,108.71237168,21.221,21.22,282.8374]
[1680421401731,115.82392463,21.221,21.22,282.8374]
[1680421412952,98.82392463,21.221,21.22,282.8374]
[1680421413255,43.60455295,21.221,21.22,282.8374]
[1680421414455,60.60455295,21.221,21.22,282.8374]
[1680421423565,115.82392463,21.221,21.22,271.8374]
[1680421427557,115.82392463,21.221,21.22,260.8374]
[1680421439073,115.82392463,21.221,21.22,249.8374]
[1680421440484,98.82392463,21.221,21.22,249.8374]
[1680421442086,115.82392463,21.221,21.22,249.8374]
[1680421451107,115.82392463,21.221,21.22,238.8374]
[1680421451391,160.43324047,21.221,21.22,238.8374]
[1680421454288,160.43324047,21.221,21.22,227.8374]
[1680421454474,196.84400725,21.221,21.22,167.7174]
[1680421454676,196.84400725,21.221,21.22,107.5974]
[1680421454874,196.84400725,21.221,21.22,47.4774]
[1680421455075,10.0,21.22,21.209,119.703]
[1680421455290,10.0,21.216,21.209,119.703]
[1680421455492,20.0,21.215,21.209,119.703]
[1680421455691,27.11155295,21.215,21.209,119.703]
[1680421455875,7.11155295,21.214,21.209,119.703]
[1680421456193,20.0,21.213,21.209,119.703]
[1680421456395,17.0,21.212,21.209,119.703]
[1680421456691,20.0,21.211,21.209,119.703]
[1680421456986,17.0,21.21,21.209,119.703]
[1680421457185,44.11155295,21.21,21.208,113.6668]
[1680421457390,20.0,21.209,21.208,113.6668]
[1680421457594,44.11155295,21.209,21.2,10.0]
[1680421457794,17.0,21.208,21.2,10.0]
[1680421458092,20.0,21.207,21.199,119.703]
[1680421458296,17.0,21.206,21.199,119.703]
[1680421458480,20.0,21.205,21.199,119.703]
[1680421465491,20.0,21.208,21.2,10.0]
[1680421465697,17.0,21.207,21.2,10.0]
[1680421465898,20.0,21.206,21.2,10.0]
[1680421467591,20.0,21.207,21.2,10.0]
[1680421470904,20.0,21.207,21.199,119.703]
[1680421472708,17.0,21.206,21.199,119.703]
[1680421473007,20.0,21.205,21.199,119.703]
[1680421474503,20.0,21.207,21.199,119.703]
[1680421474703,17.0,21.206,21.199,119.703]
[1680421474895,20.0,21.205,21.199,119.703]
[1680421475085,17.0,21.204,21.199,119.703]
[1680421475289,20.0,21.205,21.199,119.703]
[1680421475588,20.0,21.207,21.199,119.703]
[1680421475784,17.0,21.206,21.199,119.703]
[1680421476000,20.0,21.205,21.199,119.703]
[1680421478306,17.0,21.204,21.199,119.703]
[1680421478511,20.0,21.203,21.199,119.703]
[1680421478897,17.0,21.202,21.199,119.703]
[1680421484010,20.0,21.203,21.199,119.703]
[1680421484208,17.0,21.202,21.199,119.703]
[1680421494108,24.11155295,21.202,21.199,119.703]
[1680421500027,24.11155295,21.202,21.197,118.2666]
[1680421500221,24.11155295,21.202,21.187,10.0]
[1680421500529,36.47,21.2,21.187,10.0]
[1680421500715,20.0,21.199,21.187,10.0]
[1680421500918,26.47,21.2,21.187,10.0]
[1680421501611,26.47,21.2,21.189,10.0]
[1680421505727,16.503,21.208,21.189,10.0]
[1680421505936,37.0,21.207,21.189,10.0]
[1680421506609,26.47,21.21,21.191,10.0]
[1680421506809,20.0,21.212,21.192,17.0]
[1680421507011,20.0,21.212,21.194,10.0]
[1680421507211,20.0,21.212,21.196,10.0]
[1680421507724,20.0,21.212,21.198,10.0]
[1680421508110,16.496,21.218,21.198,10.0]
[1680421508732,17.0,21.217,21.198,10.0]
[1680421509027,20.0,21.216,21.198,10.0]
[1680421509230,17.0,21.215,21.198,10.0]
[1680421509430,20.0,21.214,21.198,10.0]
[1680421509631,17.0,21.213,21.198,10.0]
[1680421511523,20.0,21.214,21.2,10.0]
[1680421511727,20.0,21.216,21.202,10.0]
[1680421513825,20.0,21.216,21.204,10.0]
[1680421514132,20.0,21.216,21.206,10.0]
[1680421518930,18.871821,21.217,21.206,10.0]
[1680421524045,26.47,21.22,21.206,10.0]
[1680421524244,17.0,21.219,21.206,10.0]
[1680421524634,26.47,21.22,21.206,10.0]
[1680421524944,17.0,21.219,21.206,10.0]
[1680421532763,26.47,21.22,21.206,10.0]
[1680421533054,26.47,21.22,21.208,10.0]
[1680421535644,18.866795,21.222,21.209,17.0]
[1680421535846,18.866795,21.222,21.21,10.0]
[1680421536045,18.866795,21.222,21.212,10.0]
[1680421537960,18.866795,21.222,21.214,10.0]
[1680421538256,160.1692,21.23,21.214,10.0]
[1680421538462,37.0,21.229,21.214,10.0]
[1680421538960,20.0,21.229,21.214,10.0]
[1680421539256,20.0,21.229,21.216,10.0]
[1680421539841,26.36,21.23,21.218,10.0]
[1680421544063,52.83,21.23,21.216,10.0]
[1680421544261,17.0,21.229,21.214,10.0]
[1680421544443,59.94155295,21.23,21.214,10.0]
[1680421544643,17.0,21.229,21.214,10.0]
[1680421544945,59.94155295,21.23,21.214,10.0]
[1680421545140,26.47,21.23,21.214,10.0]
[1680421545340,26.47,21.23,21.216,10.0]
[1680421545553,26.47,21.23,21.218,10.0]
[1680421546753,26.47,21.23,21.22,10.0]
[1680421547461,26.47,21.23,21.222,10.0]
[1680421548254,18.862674,21.227,21.222,10.0]
[1680421548453,18.862674,21.227,21.22,10.0]
[1680421550343,18.862674,21.227,21.221,17.0]
[1680421552772,18.862674,21.227,21.213,108.3427]
[1680421552952,27.11155295,21.226,21.213,108.3427]
[1680421556466,26.38,21.22,21.213,108.3427]
[1680421557963,26.38,21.22,21.214,10.0]
[1680421558160,27.11155295,21.226,21.214,10.0]
[1680421559466,20.0,21.226,21.214,10.0]
[1680421559774,20.0,21.226,21.216,10.0]
[1680421560078,20.0,21.226,21.218,10.0]
[1680421560465,20.0,21.226,21.219,17.0]
[1680421561562,20.0,21.229,21.219,17.0]
[1680421561875,26.47,21.23,21.219,17.0]
[1680421562074,26.47,21.23,21.22,10.0]
[1680421562265,26.47,21.23,21.222,10.0]
[1680421562864,26.47,21.23,21.22,10.0]
[1680421565163,26.47,21.23,21.222,10.0]
[1680421565478,26.47,21.23,21.223,17.0]
[1680421567484,55.00333172,21.236,21.223,17.0]
[1680421567665,20.0,21.235,21.223,17.0]
[1680421567865,20.0,21.235,21.224,10.0]
[1680421568164,20.0,21.235,21.226,10.0]
[1680421568362,20.0,21.235,21.227,17.0]
[1680421568580,20.0,21.238,21.227,17.0]
[1680421570181,10.0,21.238,21.224,10.0]
[1680421570368,20.0,21.237,21.225,17.0]
[1680421571067,28.85399,21.238,21.225,17.0]
[1680421571281,20.0,21.237,21.225,17.0]
[1680421578494,20.0,21.237,21.226,10.0]
[1680421578672,20.0,21.237,21.227,17.0]
[1680421578874,20.0,21.237,21.228,10.0]
[1680421579074,20.0,21.237,21.229,17.0]
[1680421580086,20.0,21.239,21.229,17.0]
[1680421581279,52.94,21.24,21.229,17.0]
[1680421582289,26.47,21.24,21.229,17.0]
[1680421582593,26.47,21.24,21.228,10.0]
[1680421583070,26.47,21.24,21.229,17.0]
[1680421583273,71.47533172,21.248,21.23,10.0]
[1680421583467,71.47533172,21.248,21.232,10.0]
[1680421583774,10.0,21.246,21.232,10.0]
[1680421584093,16.475,21.244,21.232,10.0]
[1680421584483,20.0,21.243,21.232,10.0]
[1680421587494,18.85124,21.241,21.232,10.0]
[1680421588589,42.948,21.24,21.23,123.4837]
[1680421590486,26.47,21.24,21.23,123.4837]
[1680421599594,26.47,21.24,21.23,10.0]
[1680421599796,10.0,21.238,21.22,10.0]
[1680421600003,26.47,21.23,21.22,127.2913]
[1680421602698,26.47,21.23,21.22,117.2913]
[1680421602899,26.47,21.23,21.222,10.0]
[1680421607287,26.47,21.23,21.223,17.0]
[1680421607489,26.47,21.23,21.224,10.0]
[1680421609992,26.47,21.23,21.223,17.0]
[1680421613796,26.47,21.23,21.224,10.0]
[1680421614003,55.00333172,21.237,21.226,10.0]
[1680421614203,20.0,21.236,21.226,10.0]
[1680421614507,20.0,21.236,21.227,17.0]
[1680421616808,20.0,21.236,21.226,10.0]
[1680421620013,20.0,21.236,21.224,10.0]
[1680421620212,26.38,21.23,21.222,10.0]
[1680421620709,26.38,21.23,21.22,117.2913]
[1680421621011,26.38,21.23,21.209,16.502]
[1680421621012,16.489,21.226,21.209,10.0]
[1680421621203,16.489,21.226,21.21,30.0]
[1680421621404,20.0,21.225,21.211,10.0]
[1680421622212,20.0,21.228,21.211,10.0]
[1680421622400,20.0,21.228,21.213,10.0]
[1680421622598,27.11155295,21.228,21.215,10.0]
[1680421622801,27.11155295,21.228,21.216,17.0]
[1680421623108,27.11155295,21.228,21.217,10.0]
[1680421626802,27.11155295,21.228,21.215,10.0]
[1680421627003,27.11155295,21.228,21.217,10.0]
[1680421631118,20.0,21.228,21.217,10.0]
[1680421635710,54.99622285,21.229,21.217,10.0]
[1680421638619,71.710701,21.23,21.219,10.0]
[1680421643227,52.85,21.23,21.219,10.0]
[1680421645531,52.85,21.23,21.217,10.0]
[1680421645736,52.85,21.23,21.219,10.0]
[1680421647126,26.47,21.23,21.219,10.0]
[1680421653437,26.47,21.23,21.221,10.0]
[1680421653924,26.47,21.23,21.223,10.0]
[1680421654232,18.856822,21.235,21.223,10.0]
[1680421654438,18.856822,21.235,21.224,17.0]
[1680421654439,20.0,21.234,21.224,17.0]
[1680421654631,20.0,21.234,21.225,10.0]
[1680421654839,20.0,21.234,21.227,10.0]
[1680421655129,20.0,21.234,21.228,17.0]
[1680421655533,20.0,21.239,21.228,17.0]
[1680421656736,52.83,21.24,21.228,17.0]
[1680421657031,26.47,21.24,21.228,17.0]
[1680421666839,59.94155295,21.24,21.225,10.0]
[1680421667044,48.89333172,21.239,21.225,10.0]
[1680421667444,7.11155295,21.238,21.225,10.0]
[1680421671337,7.11155295,21.238,21.227,10.0]
[1680421673456,7.11155295,21.238,21.229,10.0]
[1680421676047,7.11155295,21.238,21.227,10.0]
[1680421676273,7.11155295,21.238,21.229,10.0]
[1680421677759,7.11155295,21.238,21.227,10.0]
[1680421680952,26.43,21.24,21.229,10.0]
[1680421681468,26.43,21.24,21.231,10.0]
[1680421681949,26.43,21.24,21.23,17.0]
[1680421683062,52.76,21.24,21.229,10.0]
[1680421683257,37.0,21.239,21.219,126.5141]
[1680421683448,16.48,21.237,21.219,126.5141]
[1680421683647,17.0,21.236,21.219,126.5141]
[1680421683848,20.0,21.235,21.219,126.5141]
[1680421684052,26.34,21.23,21.219,126.5141]
[1680421684358,26.34,21.23,21.219,116.5141]
[1680421700273,26.34,21.23,21.22,10.0]
[1680421708976,52.67,21.23,21.219,116.5141]
[1680421717764,17.0,21.229,21.219,116.5141]
[1680421720381,17.0,21.229,21.216,115.6922]
[1680421731292,52.67,21.23,21.217,10.0]
[1680421731587,17.0,21.229,21.217,10.0]
[1680421734472,52.67,21.23,21.217,10.0]
[1680421742396,48.89333172,21.232,21.217,10.0]
[1680421742582,21.01,21.23,21.217,10.0]
[1680421743083,7.11155295,21.229,21.217,10.0]
[1680421749902,7.11155295,21.229,21.216,115.6922]
[1680421750100,37.0,21.228,21.216,115.6922]
[1680421750600,7.11155295,21.227,21.216,115.6922]
[1680421750799,20.0,21.226,21.216,115.6922]
[1680421751202,27.11155295,21.226,21.216,115.6922]
[1680421766319,43.60055295,21.226,21.216,115.6922]
[1680421774222,20.0,21.226,21.216,115.6922]
[1680421774520,20.0,21.225,21.216,115.6922]
[1680421774703,20.0,21.228,21.218,10.0]
[1680421775621,54.59888728,21.229,21.218,10.0]
[1680421775808,104.785,21.241,21.219,17.0]
[1680421776006,16.478,21.24,21.22,10.0]
[1680421776211,21.16,21.23,21.221,17.0]
[1680421776414,21.16,21.23,21.222,10.0]
[1680421777424,7.11155295,21.239,21.222,10.0]
[1680421777618,10.0,21.237,21.222,10.0]
[1680421777823,20.0,21.236,21.222,10.0]
[1680421778121,27.11155295,21.236,21.222,10.0]
[1680421778314,7.11155295,21.235,21.222,10.0]
[1680421778612,20.0,21.234,21.222,10.0]
[1680421781420,27.11155295,21.234,21.222,10.0]
[1680421792636,27.11155295,21.234,21.22,10.0]
[1680421792934,26.39,21.23,21.22,10.0]
[1680421795539,26.39,21.23,21.219,119.4923]
[1680421795833,33.50155295,21.23,21.219,119.4923]
[1680421799834,17.0,21.229,21.219,119.4923]
[1680421800332,24.11155295,21.229,21.219,119.4923]
[1680421800732,7.11155295,21.229,21.219,119.4923]
[1680421801930,7.11155295,21.229,21.22,10.0]
[1680421802122,26.39,21.23,21.22,10.0]
[1680421822844,26.39,21.23,21.222,10.0]
[1680421830064,26.39,21.23,21.22,10.0]
[1680421836969,52.57,21.23,21.21,17.11155295]
[1680421837267,52.57,21.23,21.211,10.0]
[1680421837462,17.0,21.229,21.211,10.0]
[1680421842677,20.97,21.23,21.211,10.0]
[1680421842878,17.0,21.229,21.211,10.0]
[1680421843256,24.11155295,21.229,21.211,10.0]
[1680421843458,36.487,21.228,21.211,10.0]
[1680421843662,17.0,21.227,21.211,10.0]
[1680421843872,20.0,21.226,21.211,10.0]
[1680421845567,27.11155295,21.226,21.211,10.0]
[1680421849284,21.16,21.22,21.211,10.0]
[1680421857784,21.16,21.22,21.21,10.0]
[1680421870002,21.16,21.22,21.209,10.0]
[1680421874599,21.16,21.22,21.209,10.0]
[1680421880797,21.16,21.22,21.208,114.5325]
[1680421887414,17.0,21.219,21.208,114.5325]
[1680421891406,24.11155295,21.219,21.208,114.5325]
[1680421891611,24.11155295,21.219,21.204,121.7783]
[1680421891817,21.16,21.21,21.204,111.7783]
[1680421894302,24.11155295,21.219,21.204,111.7783]
[1680421894303,24.11155295,21.219,21.205,10.0]
[1680421894507,20.0,21.218,21.205,10.0]
[1680421895620,27.11155295,21.218,21.205,10.0]
[1680421900413,7.11155295,21.218,21.205,10.0]
[1680421900713,21.16,21.22,21.206,17.0]
[1680421900903,21.16,21.22,21.207,10.0]
[1680421901108,21.16,21.22,21.209,10.0]
[1680421903106,21.16,21.22,21.207,10.0]
[1680421903318,21.16,21.22,21.209,10.0]
[1680421904520,21.16,21.22,21.208,17.0]
[1680421905428,21.16,21.22,21.207,10.0]
[1680421905627,21.16,21.22,21.209,10.0]
[1680421911827,17.0,21.219,21.205,10.0]
[1680421912030,24.11155295,21.219,21.205,10.0]
[1680421912215,7.11155295,21.218,21.205,10.0]
[1680421912530,17.0,21.217,21.205,10.0]
[1680421919721,7.11155295,21.218,21.205,10.0]
[1680421921916,17.0,21.217,21.205,10.0]
[1680421933734,24.11155295,21.217,21.205,10.0]
[1680421938636,24.11155295,21.217,21.199,10.0]
[1680421940539,7.11155295,21.217,21.205,10.0]
[1680421943648,52.46,21.22,21.205,10.0]
[1680421943831,59.57155295,21.22,21.205,10.0]
[1680421944447,52.46,21.22,21.205,10.0]
[1680421945747,26.24,21.22,21.205,10.0]
[1680421957738,17.0,21.219,21.205,10.0]
[1680421961659,24.11155295,21.219,21.205,10.0]
[1680421971668,26.22,21.21,21.202,10.0]
[1680421971859,26.22,21.21,21.199,10.0]
[1680421972455,21.19,21.21,21.199,10.0]
[1680421976884,21.19,21.21,21.197,222.8484]
[1680421977480,21.19,21.21,21.198,10.0]
[1680421981896,17.0,21.209,21.198,10.0]
[1680421983090,21.19,21.21,21.198,10.0]
[1680421983274,17.0,21.209,21.198,10.0]
[1680421991905,21.19,21.21,21.198,10.0]
[1680421992212,21.19,21.21,21.197,222.8484]
[1680421992722,21.19,21.21,21.198,10.0]
[1680421993194,21.19,21.21,21.186,216.90824373]
[1680421993195,16.503,21.208,21.186,109.6883]
[1680421993389,37.0,21.207,21.189,10.0]
[1680421993594,44.11155295,21.207,21.189,10.0]
[1680421993904,7.11155295,21.206,21.189,10.0]
[1680421994094,37.0,21.205,21.189,10.0]
[1680421994906,37.0,21.205,21.191,10.0]